bitfinex/quotes_BTCUSD_20260310
["timestamp","ask_amount","ask_price","bid_price","bid_amount"]
[1773103239350,0.03170001,69216.0,69204.0,0.03785125]
[1773103239556,0.03170001,69216.0,69205.0,0.03785125]
[1773103239696,0.03,69214.0,69205.0,0.03785125]
[1773103239894,0.03,69214.0,69202.0,0.07373224]
[1773103240341,0.03,69214.0,69204.0,0.03785125]
[1773103240541,0.03,69214.0,69206.0,0.03785125]
[1773103240758,0.03,69214.0,69206.0,0.03504496]
[1773103241344,0.03,69212.0,69207.0,0.03644811]
[1773103241587,0.03,69212.0,69207.0,0.03127551]
[1773103242698,0.03,69212.0,69207.0,0.10071613]
[1773103242906,0.03,69212.0,69207.0,0.09550353]
[1773103243321,0.10224194,69212.0,69207.0,0.02325662]
[1773103243556,0.03,69212.0,69207.0,0.02325662]
[1773103243729,0.03,69212.0,69201.0,0.21473032]
[1773103243730,0.03,69208.0,69195.0,0.0722587]
[1773103243886,0.03,69204.0,69193.0,0.07226095]
[1773103244093,0.03,69204.0,69195.0,0.07225893]
[1773103244312,0.03,69204.0,69197.0,0.07263931]
[1773103244487,0.03,69204.0,69197.0,0.10249167]
[1773103245097,0.10225035,69204.0,69197.0,0.10249167]
[1773103245300,0.10225035,69204.0,69197.0,0.03023444]
[1773103247720,0.10225035,69204.0,69197.0,0.00038208]
[1773103250036,0.10225035,69204.0,69193.0,0.02506184]
[1773103250237,0.10285244,69204.0,69193.0,0.08697802]
[1773103250438,0.10285244,69204.0,69193.0,0.07663282]
[1773103250646,0.10285244,69204.0,69193.0,0.0812138]
[1773103250845,0.10285244,69204.0,69193.0,0.05594242]
[1773103251090,0.10285244,69204.0,69194.0,0.01492618]
[1773103251652,0.03060209,69204.0,69194.0,0.01492618]
[1773103251851,0.0722502,69204.0,69196.0,0.01492618]
[1773103252379,0.07224952,69205.0,69198.0,0.01492618]
[1773103252575,0.07224952,69205.0,69198.0,0.01504084]
[1773103253012,0.03,69205.0,69198.0,0.01504084]
[1773103254585,0.10225013,69205.0,69198.0,0.07237089]
[1773103254815,0.10225013,69205.0,69199.0,0.01492618]
[1773103254990,0.1024603,69214.0,69201.0,0.01492618]
[1773103255197,0.00148,69213.0,69201.0,0.01492618]
[1773103255494,0.1024603,69214.0,69201.0,0.01492618]
[1773103255720,0.03022001,69214.0,69201.0,0.01492618]
[1773103255854,0.00022001,69215.0,69201.0,0.01492618]
[1773103255855,0.00022001,69215.0,69203.0,0.01492618]
[1773103256314,0.00022001,69215.0,69203.0,0.01640618]
[1773103256729,0.03,69214.0,69204.0,0.07225015]
[1773103256929,0.03,69214.0,69205.0,0.01492618]
[1773103257837,0.00022001,69215.0,69205.0,0.01492618]
[1773103258448,0.00022001,69215.0,69206.0,0.01492618]
[1773103258652,0.00022001,69215.0,69207.0,0.01492618]
[1773103258875,0.00022001,69218.0,69209.0,0.01492618]
[1773103259054,0.00022001,69221.0,69211.0,0.01492618]
[1773103260401,0.03,69219.0,69203.0,0.01492618]
[1773103260574,0.07393244,69221.0,69192.0,0.00148]
[1773103260575,0.03,69212.0,69192.0,0.00148]
[1773103260791,0.29741497,69205.0,69192.0,0.07226268]
[1773103260950,0.03148,69204.0,69192.0,0.07975659]
[1773103261347,0.03148,69204.0,69193.0,0.00749391]
[1773103262202,0.00130239,69204.0,69193.0,0.00749391]
[1773103263093,0.07355274,69204.0,69195.0,0.00749391]
[1773103263928,0.03,69202.0,69188.0,0.00148]
[1773103264102,0.03,69202.0,69189.0,0.21594945]
[1773103264309,0.03,69202.0,69190.0,0.00749391]
[1773103264714,0.25394663,69202.0,69184.0,0.00749391]
[1773103264914,0.25403623,69202.0,69184.0,0.00749391]
[1773103265287,0.03,69200.0,69186.0,0.00749391]
[1773103265849,0.0300896,69200.0,69186.0,0.00749391]
[1773103266048,0.07247885,69210.0,69190.0,0.16703469]
[1773103266203,0.00148,69209.0,69193.0,0.00749391]
[1773103266402,0.00022001,69207.0,69193.0,0.00749391]
[1773103266825,0.00170001,69207.0,69193.0,0.00749391]
[1773103267495,0.03,69205.0,69194.0,0.07975451]
[1773103267703,0.03,69205.0,69195.0,0.00749391]
[1773103268555,0.03,69205.0,69194.0,0.0722606]
[1773103268945,0.25394663,69205.0,69194.0,0.0722606]
[1773103269785,0.32619669,69205.0,69192.0,0.0722606]
[1773103271058,0.10225006,69205.0,69191.0,0.04040998]
[1773103271266,0.10225006,69205.0,69190.0,0.0724642]
[1773103271267,0.03,69200.0,69190.0,0.0724642]
[1773103271843,0.03,69200.0,69193.0,0.00970606]
[1773103272089,0.07246759,69207.0,69193.0,0.00970606]
[1773103272333,0.03148,69206.0,69193.0,0.00970606]
[1773103273111,0.03,69206.0,69193.0,0.00970606]
[1773103274416,0.04002631,69207.0,69194.0,0.08196666]
[1773103275079,0.26397294,69207.0,69194.0,0.08196666]
[1773103275960,0.25394663,69204.0,69194.0,0.0722606]
[1773103276860,0.25394663,69204.0,69192.0,0.00148]
[1773103276861,0.03,69200.0,69192.0,0.00148]
[1773103277091,0.03,69197.0,69190.0,0.07246453]
[1773103277269,0.00148,69199.0,69190.0,0.07246453]
[1773103278274,0.00148,69199.0,69190.0,0.08217059]
[1773103279812,0.03,69198.0,69191.0,0.00970606]
[1773103281199,0.03,69198.0,69190.0,0.0002]
[1773103281624,0.03,69198.0,69191.0,0.00970606]
[1773103283072,0.10225727,69198.0,69190.0,0.0002]
[1773103283271,0.3262039,69198.0,69190.0,0.0002]
[1773103284509,0.10225727,69198.0,69190.0,0.0002]
[1773103287115,0.03,69192.0,69179.0,0.08198219]
[1773103287327,0.25394663,69188.0,69179.0,0.0722754]
[1773103287528,0.25394663,69188.0,69179.0,0.07227619]
[1773103287859,0.25394663,69188.0,69178.0,0.07227705]
[1773103288041,0.25394663,69188.0,69179.0,0.07227583]
[1773103288252,0.03,69188.0,69179.0,0.07227583]
[1773103288403,0.03010482,69188.0,69179.0,0.07227583]
[1773103288817,0.03010482,69188.0,69180.0,0.07247493]
[1773103289023,0.03,69187.0,69181.0,0.00970606]
[1773103289229,0.00010482,69188.0,69184.0,0.00970606]
[1773103290153,0.03010482,69188.0,69184.0,0.00970606]
[1773103290484,0.00148,69195.0,69183.0,0.0002]
[1773103290775,0.00148,69194.0,69184.0,0.00970606]
[1773103291189,0.03,69192.0,69185.0,0.07227]
[1773103291344,0.03,69192.0,69184.0,0.08197683]
[1773103291965,0.03,69192.0,69184.0,0.07227077]
[1773103293227,0.03,69190.0,69184.0,0.07227077]
[1773103294987,0.0002341,69210.0,69184.0,0.07227077]
[1773103295193,0.0737312,69203.0,69186.0,0.07226895]
[1773103295394,0.0722512,69203.0,69188.0,0.00970606]
[1773103295662,0.00148,69202.0,69188.0,0.00970606]
[1773103295998,0.00148,69201.0,69188.0,0.00970606]
[1773103296204,0.00148,69201.0,69184.0,0.07247077]
[1773103296205,0.03,69197.0,69184.0,0.0002]
[1773103296404,0.03,69189.0,69180.0,0.0002]
[1773103296610,0.03,69187.0,69180.0,0.00030482]
[1773103296946,0.03,69183.0,69175.0,0.00023]
[1773103297105,0.03011471,69183.0,69175.0,0.00023]
[1773103297305,0.03,69181.0,69175.0,0.00023]
[1773103297516,0.03,69181.0,69173.0,0.0002]
[1773103297713,0.03,69181.0,69173.0,0.07248185]
[1773103298072,0.03,69181.0,69173.0,0.0002]
[1773103298301,0.03148,69181.0,69173.0,0.0002]
[1773103298505,0.03,69180.0,69173.0,0.0724824]
[1773103298692,0.03,69180.0,69174.0,0.00970606]
[1773103299630,0.03,69179.0,69175.0,0.01266759]
[1773103299840,0.03,69179.0,69173.0,0.07248243]
[1773103300599,0.03,69178.0,69174.0,0.01266759]
[1773103300781,0.03,69178.0,69173.0,0.0002]
[1773103300967,0.03,69178.0,69173.0,0.07248246]
[1773103301572,0.03,69177.0,69173.0,0.07248246]
[1773103302403,0.03,69177.0,69173.0,0.0002]
[1773103302821,0.03,69178.0,69173.0,0.0002]
[1773103303346,0.07227461,69181.0,69173.0,0.0002]
[1773103303505,0.00148,69189.0,69175.0,0.07228044]
[1773103303846,0.00148,69189.0,69176.0,0.01266759]
[1773103303847,0.03,69188.0,69176.0,0.01266759]
[1773103304196,0.03148,69188.0,69176.0,0.01266759]
[1773103304629,0.03,69188.0,69176.0,0.01414759]
[1773103305505,0.03,69186.0,69177.0,0.07227835]
[1773103305709,0.03,69186.0,69178.0,0.01266759]
[1773103307696,0.03,69186.0,69176.0,0.00148]
[1773103307697,0.03,69184.0,69176.0,0.00148]
[1773103307850,0.03,69182.0,69175.0,0.00011471]
[1773103308056,0.26532529,69182.0,69173.0,0.0002]
[1773103308398,0.26544002,69182.0,69173.0,0.0002]
[1773103308790,0.03,69178.0,69167.0,0.07228805]
[1773103308992,0.26384529,69178.0,69167.0,0.07376805]
[1773103309598,0.03,69176.0,69167.0,0.07228805]
[1773103310693,0.03,69176.0,69171.0,0.0002]
[1773103312301,0.03,69174.0,69167.0,0.0722888]
[1773103313296,0.03,69170.0,69159.0,0.07249648]
[1773103313456,0.03,69170.0,69159.0,0.07245648]
[1773103313457,0.26705551,69170.0,69159.0,0.07245648]
[1773103314648,0.03,69168.0,69160.0,0.01409103]
[1773103315702,0.07228671,69170.0,69160.0,0.01409103]
[1773103315703,0.03,69167.0,69160.0,0.01409103]
[1773103316670,0.03,69167.0,69161.0,0.07229507]
[1773103317278,0.03,69167.0,69159.0,0.07245657]
[1773103317718,0.03,69167.0,69159.0,0.00016]
[1773103317931,0.03,69165.0,69154.0,0.0002]
[1773103318238,0.26557551,69163.0,69154.0,0.07250154]
[1773103318788,0.26557551,69163.0,69154.0,0.0002]
[1773103318789,0.3378695,69163.0,69154.0,0.0002]
[1773103320650,0.3378695,69163.0,69150.0,0.00023]
[1773103320651,0.01335532,69160.0,69150.0,0.00023]
[1773103320803,0.07229399,69163.0,69147.0,0.00168]
[1773103320804,0.11561458,69157.0,69147.0,0.00168]
[1773103321005,0.04335532,69153.0,69145.0,0.0002]
[1773103321440,0.03,69153.0,69145.0,0.07251166]
[1773103322036,0.03,69154.0,69145.0,0.0002]
[1773103322236,0.03,69154.0,69145.0,0.0725117]
[1773103323057,0.03,69152.0,69144.0,0.00562]
[1773103323260,0.23557551,69151.0,69150.0,0.00017777]
[1773103323472,0.22370019,69151.0,69141.0,0.0002]
[1773103323674,0.03,69146.0,69139.0,0.0002341]
[1773103323851,0.03011464,69146.0,69139.0,0.07255214]
[1773103324052,0.27228505,69146.0,69138.0,0.07297742]
[1773103324252,0.03011464,69146.0,69138.0,0.07297742]
[1773103324644,0.24217041,69150.0,69146.0,7.135e-05]
[1773103324849,0.24209955,69149.0,69138.0,0.07242479]
[1773103325065,0.24209955,69149.0,69138.0,0.07253943]
[1773103325254,0.07230867,69148.0,69138.0,0.07253943]
[1773103325713,0.07230867,69148.0,69140.0,0.0002]
[1773103325911,0.03,69147.0,69140.0,0.0002]
[1773103326947,0.03,69147.0,69135.0,0.07232195]
[1773103326948,0.01335532,69146.0,69133.0,0.07400411]
[1773103327141,0.03,69141.0,69130.0,0.07232722]
[1773103327297,0.03,69139.0,69131.0,0.07280608]
[1773103328039,0.03,69139.0,69126.0,0.07254903]
[1773103328245,0.03,69139.0,69128.0,0.01409103]
[1773103329015,0.03148,69139.0,69128.0,0.01409103]
[1773103329237,0.03,69137.0,69130.0,0.01491993]
[1773103329401,0.07231912,69139.0,69130.0,0.01491993]
[1773103329402,0.03132957,69142.0,69130.0,0.01491993]
[1773103329627,0.03132957,69142.0,69132.0,0.01491993]
[1773103329824,0.02506366,69150.0,69133.0,0.01639993]
[1773103330026,0.07390558,69146.0,69134.0,0.01491993]
[1773103330231,0.03,69145.0,69134.0,0.01491993]
[1773103331301,0.03,69145.0,69132.0,0.00148]
[1773103331610,0.03,69144.0,69133.0,0.07232436]
[1773103331761,0.07230441,69153.0,69135.0,0.22971422]
[1773103332093,0.09737029,69150.0,69135.0,0.00011475]
[1773103332286,0.22881509,69149.0,69135.0,0.00011475]
[1773103332493,0.01440576,69148.0,69135.0,0.00011475]
[1773103332781,0.03,69147.0,69135.0,0.00011475]
[1773103332985,0.03,69147.0,69135.0,0.01503468]
[1773103333186,0.03,69147.0,69135.0,0.01523468]
[1773103333539,0.03,69146.0,69136.0,0.07232122]
[1773103334385,0.02506366,69150.0,69136.0,0.07232122]
[1773103334386,0.02506366,69150.0,69137.0,0.01491993]
[1773103334611,0.03,69149.0,69141.0,0.01491993]
[1773103334840,0.07230335,69154.0,69143.0,0.01491993]
[1773103335060,0.07378335,69154.0,69143.0,0.01491993]
[1773103335291,0.07378335,69154.0,69139.0,0.01491993]
[1773103335519,0.07378335,69154.0,69139.0,0.22971422]
[1773103335747,0.03,69153.0,69141.0,0.01491993]
[1773103339306,0.22881509,69158.0,69141.0,0.01491993]
[1773103339307,0.00148,69164.0,69146.0,0.01491993]
[1773103339452,0.22881509,69165.0,69142.0,0.07231494]
[1773103339662,0.01440576,69164.0,69144.0,0.01491993]
[1773103339856,0.01440576,69163.0,69144.0,0.01491993]
[1773103340060,0.00148,69167.0,69147.0,0.22971422]
[1773103340247,0.03,69167.0,69150.0,0.01491993]
[1773103340446,0.03,69167.0,69154.0,0.01491993]
[1773103340708,0.03,69167.0,69156.0,0.01491993]
[1773103341065,0.00022001,69160.0,69157.0,0.07229926]
[1773103341273,0.03,69166.0,69158.0,0.01491993]
[1773103341883,0.0002179,69168.0,69158.0,0.01491993]
[1773103342203,0.08617735,69171.0,69160.0,0.01491993]
[1773103342400,0.03,69170.0,69160.0,0.22982901]
[1773103342601,0.03,69170.0,69160.0,0.00011479]
[1773103342974,0.03,69170.0,69160.0,0.01503472]
[1773103343287,0.03,69170.0,69161.0,0.07229507]
[1773103343482,0.03,69170.0,69162.0,0.01491993]
[1773103344120,0.03,69177.0,69162.0,0.24463415]
[1773103344379,0.00171,69175.0,69164.0,0.22971422]
[1773103344536,0.00023,69175.0,69165.0,0.22971422]
[1773103344736,0.00023,69175.0,69166.0,0.01491993]
[1773103344988,5.205e-05,69175.0,69166.0,0.01491993]
[1773103345370,5.205e-05,69175.0,69168.0,0.01491993]
[1773103345684,0.0719747,69177.0,69168.0,0.01491993]
[1773103345825,0.07144083,69177.0,69168.0,0.01491993]
[1773103346488,0.00022001,69178.0,69168.0,0.01491993]
[1773103346688,0.00022001,69178.0,69168.0,0.22971422]
[1773103346912,0.00022001,69178.0,69169.0,0.01491993]
[1773103347041,0.00148,69181.0,69171.0,0.01491993]
[1773103347241,0.0737479,69188.0,69175.0,0.01491993]
[1773103347594,0.03,69186.0,69175.0,0.01639993]
[1773103347847,0.03,69186.0,69175.0,0.23119422]
[1773103348019,0.03,69186.0,69176.0,0.01491993]
[1773103348225,0.0003166,69189.0,69176.0,0.01491993]
[1773103348438,0.00022001,69190.0,69178.0,0.22971422]
[1773103348664,0.00022001,69192.0,69181.0,0.22971422]
[1773103348842,0.00022001,69192.0,69175.0,0.00148]
[1773103348843,0.00022001,69192.0,69182.0,0.01491993]
[1773103349448,0.07247751,69197.0,69184.0,0.01491993]
[1773103349449,0.00148,69196.0,69184.0,0.01491993]
[1773103349648,0.00148,69196.0,69185.0,0.01491993]
[1773103349943,0.00038279,69196.0,69185.0,0.01491993]
[1773103350511,0.03,69195.0,69183.0,0.07227208]
[1773103351146,0.03,69195.0,69183.0,0.08719201]
[1773103351564,0.03,69195.0,69184.0,0.00148]
[1773103352254,0.03,69194.0,69185.0,0.01491993]
[1773103353239,0.03,69193.0,69185.0,0.01491993]
[1773103353438,0.03,69193.0,69184.0,0.00148]
[1773103353835,0.03,69193.0,69185.0,0.07227]
[1773103354139,0.10226166,69193.0,69185.0,0.07227]
[1773103354367,0.03,69192.0,69185.0,0.07227]
[1773103355478,0.03,69193.0,69185.0,0.07227]
[1773103356167,0.03,69190.0,69183.0,0.00148]
[1773103356364,0.03,69188.0,69166.0,0.2297894]
[1773103356568,0.03,69182.0,69167.0,0.01639993]
[1773103356885,0.04440576,69182.0,69167.0,0.01639993]
[1773103357385,0.03,69182.0,69167.0,0.01639993]
[1773103357553,0.03,69185.0,69169.0,0.01491993]
[1773103358062,0.03,69185.0,69172.0,0.07228358]
[1773103358063,0.03,69183.0,69172.0,0.07228358]
[1773103360199,0.03,69182.0,69174.0,0.07228149]
[1773103360397,0.00148,69186.0,69176.0,0.01618836]
[1773103360820,0.07226582,69189.0,69176.0,0.01618836]
[1773103361022,0.00148,69186.0,69176.0,0.01618836]
[1773103361555,0.03148,69188.0,69176.0,0.01618836]
[1773103362103,0.03148,69188.0,69177.0,0.07227835]
[1773103362104,0.07226791,69187.0,69177.0,0.07227835]
[1773103362304,0.03,69186.0,69178.0,0.01618836]
[1773103362551,0.11582134,69218.0,69178.0,0.01618836]
[1773103362552,0.00038279,69196.0,69178.0,0.01618836]
[1773103362745,0.00038279,69196.0,69180.0,0.01618836]
[1773103363059,0.07412191,69196.0,69183.0,0.01618836]
[1773103363325,0.03,69195.0,69184.0,0.01766836]
[1773103363506,0.00022001,69194.0,69184.0,0.01766836]
[1773103365451,0.00022001,69194.0,69185.0,0.07227]
[1773103366142,0.03022001,69194.0,69185.0,0.07227]
[1773103366338,0.03022001,69194.0,69186.0,0.01618836]
[1773103367106,0.03,69193.0,69187.0,0.07226791]
[1773103367561,0.03,69193.0,69186.0,0.07226804]
[1773103367768,0.10226164,69193.0,69186.0,0.05459968]
[1773103367959,0.03,69191.0,69182.0,0.00148]
[1773103368480,0.03,69189.0,69182.0,0.00148]
[1773103369497,0.10226674,69189.0,69182.0,0.07375297]
[1773103373209,0.11896531,69189.0,69182.0,0.07375297]
[1773103373406,0.10226674,69189.0,69182.0,0.07375297]
[1773103376077,0.10226674,69189.0,69182.0,0.00148]
[1773103376280,0.03,69183.0,69177.0,0.07227835]
[1773103377797,0.03,69181.0,69173.0,0.07228195]
[1773103378027,0.04669857,69181.0,69173.0,0.07228195]
[1773103378399,0.04669857,69181.0,69175.0,0.0002]
[1773103379203,0.03,69179.0,69173.0,0.07228195]
[1773103379651,0.03,69179.0,69172.0,0.0002]
[1773103380414,0.03,69181.0,69173.0,0.01806684]
[1773103380849,0.00148,69184.0,69173.0,0.01806684]
[1773103381028,0.00148,69184.0,69174.0,0.01806684]
[1773103381240,0.07226701,69188.0,69174.0,0.01806684]
[1773103381419,0.03,69187.0,69175.0,0.01806684]
[1773103381820,0.03,69187.0,69177.0,0.01806684]
[1773103383106,0.24575374,69193.0,69176.0,0.0722794]
[1773103383107,0.00022001,69197.0,69178.0,0.22801243]
[1773103383277,0.00022001,69197.0,69182.0,0.01806684]
[1773103383576,0.00022001,69197.0,69184.0,0.21544288]
[1773103383750,0.00022001,69197.0,69185.0,0.01954684]
[1773103384074,0.00022001,69197.0,69187.0,0.01806684]
[1773103385720,0.03022001,69197.0,69187.0,0.01806684]
[1773103386784,0.00022001,69197.0,69188.0,0.0903337]
[1773103387085,0.00022001,69197.0,69189.0,0.01806684]
[1773103387286,0.00033473,69197.0,69189.0,0.01806684]
[1773103387641,0.03033473,69197.0,69189.0,0.01806684]
[1773103388072,0.03033473,69197.0,69188.0,0.07226686]
[1773103388304,0.03,69195.0,69188.0,0.07226686]
[1773103388515,0.03,69195.0,69188.0,0.07374686]
[1773103389596,0.00022001,69196.0,69188.0,0.07374686]
[1773103390008,0.00022001,69196.0,69189.0,0.0179559]
[1773103390648,0.03022001,69196.0,69189.0,0.0179559]
[1773103391024,0.03022001,69196.0,69190.0,0.07226477]
[1773103391739,0.00033473,69197.0,69190.0,0.07226477]
[1773103392747,0.03033473,69197.0,69190.0,0.07226477]
[1773103393373,0.03,69195.0,69190.0,0.04323384]
[1773103393577,0.04884279,69195.0,69190.0,0.04323384]
[1773103394102,0.04884279,69195.0,69189.0,0.00148]
[1773103394538,0.04884279,69195.0,69188.0,0.07374654]
[1773103394928,0.04884279,69195.0,69188.0,0.07226654]
[1773103395096,0.03033473,69197.0,69188.0,0.07226654]
[1773103397701,0.03,69195.0,69188.0,0.07226654]
[1773103399648,0.03,69194.0,69188.0,0.07226654]
[1773103399848,0.00033473,69197.0,69189.0,0.0179559]
[1773103400747,0.03033473,69197.0,69189.0,0.0179559]
[1773103401551,0.00022001,69208.0,69191.0,0.0179559]
[1773103401673,0.00022001,69210.0,69199.0,0.07225537]
[1773103401868,0.00022001,69210.0,69201.0,0.0179559]
[1773103402517,1e-08,69211.0,69201.0,0.0179559]
[1773103402684,1e-08,69211.0,69202.0,0.21544288]
[1773103402888,1e-08,69211.0,69203.0,0.0179559]
[1773103404147,1e-08,69211.0,69205.0,0.0179559]
[1773103404909,1e-08,69211.0,69206.0,0.00148]
[1773103406127,0.0188428,69211.0,69202.0,0.07225015]
[1773103406276,0.24242023,69208.0,69201.0,0.07225329]
[1773103406452,1e-08,69211.0,69202.0,0.00148]
[1773103406453,0.04884279,69206.0,69202.0,0.00148]
[1773103406652,0.04884279,69206.0,69201.0,0.07225329]
[1773103409339,0.04922527,69200.0,69193.0,0.00148]
[1773103409736,0.03038248,69200.0,69193.0,0.00148]
[1773103410133,0.00038248,69200.0,69193.0,0.00148]
[1773103410662,0.00038248,69200.0,69194.0,0.0722606]
[1773103411009,0.07224389,69210.0,69196.0,0.0179559]
[1773103411266,0.00148001,69211.0,69196.0,0.0179559]
[1773103411493,0.0737229,69211.0,69196.0,0.0179559]
[1773103411700,0.03,69210.0,69196.0,0.0179559]
[1773103411897,0.00022001,69206.0,69196.0,0.0179559]
[1773103412457,0.00022001,69206.0,69197.0,0.07225746]
[1773103412688,0.03,69205.0,69198.0,0.00148]
[1773103413600,0.03,69205.0,69197.0,0.07225746]
[1773103413823,0.03,69204.0,69199.0,0.00148]
[1773103414775,0.00022001,69206.0,69200.0,0.07225433]
[1773103417563,0.00148001,69211.0,69200.0,0.07225433]
[1773103417564,0.00148001,69211.0,69201.0,0.0179559]
[1773103417949,0.00148001,69211.0,69200.0,0.07225433]
[1773103418250,0.03,69206.0,69200.0,0.07225433]
[1773103420718,0.03022001,69206.0,69200.0,0.07225433]
[1773103420928,0.03,69205.0,69200.0,0.07225433]
[1773103421834,0.00148001,69211.0,69201.0,0.01987725]
[1773103422033,1e-08,69211.0,69201.0,0.01987725]
[1773103422459,0.03,69210.0,69201.0,0.01987725]
[1773103422689,0.10224447,69210.0,69202.0,0.07373224]
[1773103423457,0.03,69210.0,69202.0,0.07373224]
[1773103424271,0.03,69209.0,69202.0,0.07373224]
[1773103425374,1e-08,69211.0,69202.0,0.09360949]
[1773103425994,1e-08,69211.0,69202.0,0.07373224]
[1773103427605,1e-08,69211.0,69192.0,0.07226268]
[1773103427606,0.03,69204.0,69192.0,0.07226268]
[1773103427809,0.03,69198.0,69192.0,0.07226268]
[1773103428690,0.03,69196.0,69189.0,0.0002]
[1773103428886,0.03,69192.0,69188.0,0.0002]
[1773103429162,0.01873837,69191.0,69182.0,0.0002]
[1773103429314,0.01873837,69191.0,69182.0,0.00148]
[1773103429315,0.03,69188.0,69182.0,0.00148]
[1773103429512,0.04873837,69188.0,69181.0,0.00168]
[1773103429717,0.03,69188.0,69181.0,0.0002]
[1773103430346,0.12100316,69190.0,69181.0,0.0002]
[1773103431390,0.03,69189.0,69182.0,0.0184829]
[1773103431941,0.03,69189.0,69181.0,0.07247417]
[1773103432512,0.03,69188.0,69181.0,0.07247417]
[1773103433647,0.03,69190.0,69181.0,0.07247417]
[1773103434813,0.03,69189.0,69181.0,0.07247417]
[1773103435246,0.00011468,69191.0,69181.0,0.07247417]
[1773103435454,0.00148,69193.0,69181.0,0.07247417]
[1773103435629,0.07412466,69193.0,69182.0,0.0184829]
[1773103435966,0.03,69192.0,69182.0,0.0184829]
[1773103436616,0.03,69192.0,69181.0,0.07247417]
[1773103438059,0.00148,69198.0,69183.0,0.22474473]
[1773103438258,0.00148,69198.0,69185.0,0.0184829]
[1773103438259,0.07373644,69198.0,69185.0,0.0184829]
[1773103438461,0.07373644,69198.0,69187.0,0.0184829]
[1773103439189,0.03,69197.0,69187.0,0.0184829]
[1773103439623,0.07225424,69202.0,69187.0,0.0184829]
[1773103439825,0.07225424,69202.0,69189.0,0.0184829]
[1773103440111,0.03,69201.0,69191.0,0.0184829]
[1773103440279,0.07225071,69204.0,69193.0,0.0184829]
[1773103440639,0.07224807,69206.0,69193.0,0.0184829]
[1773103441109,0.03,69205.0,69193.0,0.0184829]
[1773103442091,0.03,69203.0,69194.0,0.0722606]
[1773103443631,0.04873837,69203.0,69194.0,0.0722606]
[1773103443835,0.03,69201.0,69194.0,0.0722606]
[1773103444040,0.03,69201.0,69195.0,0.00148]
[1773103444240,0.03,69201.0,69195.0,0.07373863]
[1773103444441,0.09099088,69202.0,69195.0,0.00148]
[1773103444442,0.03,69199.0,69195.0,0.00148]
[1773103444669,0.03,69197.0,69195.0,0.00148]
[1773103444846,0.03,69197.0,69192.0,0.0722606]
[1773103445049,0.03,69197.0,69193.0,0.00148]
[1773103446106,0.03,69196.0,69193.0,0.07374137]
[1773103447107,0.03,69194.0,69193.0,0.07374137]
[1773103448833,0.03,69198.0,69193.0,0.07374137]
[1773103449170,0.07225015,69204.0,69194.0,0.0184829]
[1773103449576,0.07225015,69204.0,69193.0,0.07374137]
[1773103449784,0.03,69203.0,69193.0,0.07394137]
[1773103450735,0.05016723,69203.0,69193.0,0.07394137]
[1773103450931,0.12241875,69203.0,69193.0,0.07394137]
[1773103451937,0.05016723,69203.0,69193.0,0.07394137]
[1773103452254,0.05016723,69203.0,69194.0,0.02033218]
[1773103452811,0.05016723,69203.0,69195.0,0.07225955]
[1773103454115,0.14191276,69203.0,69195.0,0.07225955]
[1773103454287,0.05016723,69203.0,69195.0,0.07225955]
[1773103454481,0.03,69201.0,69195.0,0.07225955]
[1773103456306,0.03,69200.0,69196.0,0.00148]
[1773103456482,0.03,69196.0,69194.0,0.00148]
[1773103456690,0.03,69196.0,69194.0,0.07373955]
[1773103457485,0.01949429,69201.0,69194.0,0.07373955]
[1773103457973,0.09174783,69201.0,69193.0,0.0737406]
[1773103458178,0.09174783,69201.0,69193.0,0.0722606]
[1773103458436,0.09174783,69201.0,69194.0,0.00148]
[1773103458784,0.03,69200.0,69194.0,0.00148]
[1773103458963,0.03,69198.0,69194.0,0.00148]
[1773103459200,0.03,69196.0,69194.0,0.00148]
[1773103460200,0.03,69195.0,69194.0,0.00148]
[1773103461205,0.03,69199.0,69194.0,0.00148]
[1773103461660,0.10225572,69199.0,69194.0,0.00148]
[1773103461892,0.03,69199.0,69194.0,0.00148]
[1773103462774,0.04949429,69199.0,69194.0,0.00148]
[1773103463278,0.12174975,69199.0,69194.0,0.00148]
[1773103464931,0.12174975,69199.0,69193.0,0.00148]
[1773103465751,0.10225546,69199.0,69193.0,0.00148]
[1773103466296,0.03,69198.0,69193.0,0.00148]
[1773103467325,0.03,69198.0,69193.0,0.07374151]
[1773103467728,0.00022001,69218.0,69193.0,0.07374151]
[1773103468041,0.07248103,69214.0,69204.0,0.02033218]
[1773103468248,0.03022001,69212.0,69204.0,0.02181218]
[1773103468622,0.0002412,69214.0,69204.0,0.02181218]
[1773103468821,0.0002412,69214.0,69205.0,0.02033218]
[1773103469074,0.0002412,69214.0,69206.0,0.02033218]
[1773103469264,0.0002412,69214.0,69207.0,0.07224702]
[1773103469838,0.07245762,69218.0,69207.0,0.07224702]
[1773103469839,0.00022001,69219.0,69207.0,0.0925792]
[1773103470026,0.00022001,69219.0,69209.0,0.26049764]
[1773103470245,0.00022001,69219.0,69210.0,0.02173382]
[1773103470444,0.10245469,69219.0,69210.0,0.02173382]
[1773103470976,0.10245469,69219.0,69210.0,0.00148]
[1773103471333,0.10245469,69219.0,69211.0,0.07224285]
[1773103471956,0.03022001,69219.0,69211.0,0.07224285]
[1773103472255,0.0001836,69224.0,69212.0,0.20477589]
[1773103472459,0.07784533,69228.0,69215.0,0.02017546]
[1773103472658,0.07784533,69228.0,69217.0,0.02033218]
[1773103472861,0.07784533,69228.0,69217.0,0.02025383]
[1773103473058,0.07784533,69228.0,69218.0,0.26049764]
[1773103473059,0.00562,69228.0,69218.0,0.26049764]
[1773103473259,0.00048,69233.0,69222.0,0.07223137]
[1773103473437,0.00048,69233.0,69223.0,0.24216424]
[1773103474446,0.03048,69233.0,69223.0,0.00148]
[1773103474647,0.03048,69233.0,69223.0,0.02181218]
[1773103474855,0.10270038,69233.0,69223.0,0.02181218]
[1773103475355,0.03048,69233.0,69224.0,0.07222928]
[1773103476674,0.03070001,69233.0,69224.0,0.07222928]
[1773103476883,0.10292013,69233.0,69224.0,0.07222928]
[1773103477644,0.03070001,69233.0,69224.0,0.07222928]
[1773103477927,0.03,69232.0,69224.0,0.07222928]
[1773103478844,0.03070001,69233.0,69224.0,0.07222928]
[1773103479048,0.10291997,69233.0,69224.0,0.07222928]